fUSD/lending_fUSD_20250925
["ID","MTS","AMOUNT","RATE_DAILY","PERIOD"]
[387530685,1758758528267,26675.672436,7.945e-05,2]
[387530687,1758758888432,-174.66,0.000195,2]
[387530688,1758758888457,-44.21225461,0.00019549,2]
[387530689,1758758890810,-255.78774539,0.00019549,2]
[387530690,1758758890835,-38.42450922,0.00019549,2]
[387530691,1758758892211,-192.42450922,0.00019549,2]
[387530692,1758758915318,153.99,9.775e-05,2]
[387530698,1758759032783,-69.15098156,0.00019549,2]
[387530700,1758759032793,-1307.86281834,0.00019549,2]
[387530702,1758759032804,-1192.13718166,0.00019549,2]
[387530704,1758759032814,-2000.0,0.00019574,2]
[387530706,1758759032825,-195.0,0.00019599,2]
[387530708,1758759032835,-1200.0,0.00019624,2]
[387530710,1758759032845,-353.09709361,0.00019624,2]
[387530712,1758759032855,-531.92426604,0.00019624,2]
[387530714,1758759032869,-300.0,0.00019625,2]
[387530716,1758759032880,-164.36913498,0.00019625,2]
[387530718,1758759032891,-2500.0,0.00019625,2]
[387530720,1758759032901,-2500.0,0.00019625,2]
[387530722,1758759032911,-2500.0,0.00019625,2]
[387530724,1758759032920,-150.0,0.00019632,7]
[387530726,1758759032930,-168.07,0.00019698,2]
[387530728,1758759032940,-302.06812069,0.00019698,2]
[387530731,1758759032950,-250.0,0.00019699,2]
[387530734,1758759032959,-195.0,0.000197,2]
[387530737,1758759032969,-150.0,0.00019701,2]
[387530740,1758759032978,-150.0,0.00019701,2]
[387530743,1758759032988,-150.0,0.00019701,2]
[387530746,1758759032997,-150.0,0.00019701,2]
[387530749,1758759033006,-150.0,0.00019701,2]
[387530752,1758759033016,-150.0,0.00019701,2]
[387530754,1758759033029,-150.0,0.00019701,2]
[387530756,1758759033038,-731.78104134,0.00019721,2]
[387530758,1758759033048,-195.0,0.00019747,2]
[387530760,1758759033058,-159.66,0.0001978,2]
[387530762,1758759033067,-666.0,0.0001978,3]
[387530764,1758759033076,-227.0,0.0002,2]
[387530766,1758759033086,-500.0,0.0002,2]
[387530768,1758759033095,-1000.0,0.00020062,2]
[387530770,1758759033106,-1000.0,0.00020063,2]
[387530772,1758759033116,-620.57,0.00020077,2]
[387530774,1758759033126,-170.74,0.00020119,2]
[387530776,1758759033135,-1819.17,0.00020236,2]
[387530778,1758759033144,-892.25,0.00020237,2]
[387530780,1758759033153,-848.11374697,0.00020357,2]
[387530782,1758759033164,-500.0,0.000205,2]
[387530784,1758759033174,-189.1,0.00020505,2]
[387530786,1758759033184,-232.18,0.000206,2]
[387530788,1758759033194,-2009.39,0.00020607,2]
[387530790,1758759033204,-16854.23771639,0.00020656,2]
[387530791,1758759033215,-1508.91102913,0.00020663,2]
[387530792,1758759033224,-9473.90833409,0.00020667,2]
[387530793,1758759033234,-1000.0,0.00020695,2]
[387530794,1758759033243,-600.0,0.000207,7]
[387530795,1758759033253,-300.0,0.00020711,2]
[387530796,1758759033263,-1000.0,0.00020738,2]
[387530797,1758759033272,-153.66,0.00020746,2]
[387530798,1758759033281,-218.99503538,0.00020746,2]
[387530799,1758759033292,-153.66,0.00020746,2]
[387530800,1758759033302,-151.0,0.00020753,2]
[387530801,1758759033311,-1000.0,0.00020755,2]
[387530802,1758759033320,-55367.02885317,0.00020756,2]
[387530804,1758759038499,-847.61931857,0.00020656,2]
[387530805,1758759038511,-266.06200171,0.00020755,2]
[387530806,1758759038521,-500.0,0.00020755,2]
[387530807,1758759038531,-500.0,0.00020755,2]
[387530808,1758759038540,-156.02774838,0.00020755,2]
[387530809,1758759038550,-9044.13670091,0.00020756,2]
[387530810,1758759038560,-224223.8809588,0.00020756,2]
[387530811,1758759038569,-814.0,0.00020756,2]
[387530813,1758759038579,-4245.0,0.00020756,2]
[387530815,1758759038589,-1191.039,0.00020756,2]
[387530817,1758759038598,-899.0,0.00020756,2]
[387530819,1758759038608,-945.37,0.00020767,2]
[387530820,1758759038617,-334.8,0.00020767,2]
[387530821,1758759038627,-322.49,0.00020767,2]
[387530822,1758759038637,-167.4,0.00020767,2]
[387530823,1758759038648,-343.7,0.00020767,2]
[387530824,1758759038657,-167.49,0.00020767,2]
[387530825,1758759038667,-167.49,0.00020767,2]
[387530826,1758759038677,-167.49,0.00020767,2]
[387530827,1758759038686,-540.61749723,0.00020772,2]
[387530828,1758759038696,-500.0,0.00020773,2]
[387530829,1758759038706,-500.0,0.00020773,2]
[387530830,1758759038715,-500.0,0.00020773,2]
[387530831,1758759038725,-505.04244264,0.00020773,2]
[387530832,1758759038735,-500.0,0.00020773,2]
[387530833,1758759038745,-482.38630851,0.00020773,2]
[387530834,1758759038755,-500.0,0.00020773,2]
[387530835,1758759038764,-500.0,0.00020773,2]
[387530836,1758759038774,-500.0,0.00020773,2]
[387530837,1758759038784,-500.0,0.00020773,2]
[387530838,1758759038793,-500.0,0.00020773,2]
[387530839,1758759038803,-500.0,0.00020773,2]
[387530840,1758759038813,-500.0,0.00020773,2]
[387530841,1758759038822,-500.0,0.00020773,2]
[387530842,1758759038832,-500.0,0.00020773,2]
[387530844,1758759038842,-848.11374697,0.00020787,2]
[387530845,1758759038852,-1200.0,0.000208,7]
[387530847,1758759038862,-16854.23771631,0.00020815,2]
[387530849,1758759038871,-805.89,0.00020822,2]
[387530850,1758759038881,-9473.90833402,0.00020825,2]
[387530851,1758759038890,-164.29,0.00020837,2]
[387530852,1758759038899,-151.0,0.0002086,2]
[387530853,1758759038909,-151.0,0.0002086,2]
[387530854,1758759038919,-500.0,0.0002086,2]
[387530855,1758759038928,-200.0,0.0002086,2]
[387530856,1758759038938,-151.0,0.0002086,2]
[387530857,1758759038947,-523.0877017,0.0002086,2]
[387530858,1758759038956,-151.0,0.0002086,2]
[387530859,1758759038966,-151.0,0.0002086,2]
[387530860,1758759038975,-151.0,0.0002086,2]
[387530861,1758759038985,-151.0,0.0002086,2]
[387530862,1758759038994,-200.0,0.0002086,2]
[387530863,1758759039004,-151.0,0.0002086,2]
[387530864,1758759039014,-151.0,0.0002086,2]
[387530865,1758759039023,-151.0,0.0002086,2]
[387530866,1758759039037,-200.0,0.0002086,2]
[387530867,1758759039047,-205.18415824,0.0002086,2]
[387530868,1758759039056,-2119.0,0.00020872,2]
[387530869,1758759039065,-500.0,0.00020873,2]
[387530870,1758759039076,-501.1233254,0.00020873,2]
[387530871,1758759039086,-500.0,0.00020873,2]
[387530872,1758759039095,-500.0,0.00020873,2]
[387530873,1758759039106,-500.0,0.00020873,2]
[387530874,1758759039115,-500.0,0.00020873,2]
[387530875,1758759039125,-500.0,0.00020873,2]
[387530876,1758759039135,-536.0,0.0002089,2]
[387530877,1758759039144,-824.0,0.0002089,2]
[387530878,1758759039154,-500.0,0.0002089,2]
[387530879,1758759039165,-3832.0,0.0002089,2]
[387530880,1758759039280,-500.0,0.0002089,2]
[387530881,1758759039289,-500.0,0.0002089,2]
[387530882,1758759039299,-491.0,0.0002089,2]
[387530883,1758759039308,-153.66,0.0002089,2]
[387530884,1758759039317,-998.0,0.0002089,2]
[387530885,1758759039326,-150.0,0.0002089,2]
[387530886,1758759039335,-500.0,0.0002089,2]
[387530887,1758759039344,-150.0,0.0002089,2]
[387530888,1758759039354,-150.0,0.0002089,2]
[387530889,1758759039363,-500.0,0.0002089,2]
[387530890,1758759039372,-151.0,0.00020896,2]
[387530891,1758759039382,-500.0,0.00020896,2]
[387530893,1758759039391,-150.0,0.00020896,2]
[387530895,1758759039400,-500.0,0.00020896,2]
[387530897,1758759039409,-150.0,0.00020896,2]
[387530900,1758759039420,-500.0,0.00020896,2]
[387530902,1758759039429,-500.0,0.00020896,2]
[387530904,1758759039439,-500.0,0.00020896,2]
[387530906,1758759039448,-150.0,0.00020896,2]
[387530907,1758759039457,-150.0,0.00020896,2]
[387530909,1758759039467,-150.0,0.00020896,2]
[387530910,1758759039476,-500.0,0.00020896,2]
[387530911,1758759039485,-207.41486706,0.00020896,2]
[387530913,1758759039494,-500.0,0.00020896,2]
[387530915,1758759039503,-500.0,0.00020896,2]
[387530917,1758759039512,-150.0,0.00020896,2]
[387530919,1758759039521,-150.0,0.00020896,2]
[387530921,1758759039530,-150.0,0.00020896,2]
[387530923,1758759039539,-150.0,0.00020896,2]
[387530925,1758759039548,-500.0,0.00020896,2]
[387530927,1758759039558,-150.0,0.00020896,2]
[387530929,1758759039567,-1100.0,0.00020896,2]
[387530931,1758759039576,-1100.0,0.00020896,2]
[387530933,1758759039585,-500.0,0.00020896,2]
[387530934,1758759039594,-150.0,0.00020896,2]
[387530935,1758759039603,-500.0,0.00020896,2]
[387530936,1758759039612,-500.0,0.00020896,2]
[387530937,1758759039621,-150.0,0.00020896,2]
[387530938,1758759039631,-500.0,0.00020896,2]
[387530939,1758759039640,-500.0,0.00020896,2]
[387530940,1758759039649,-150.0,0.00020896,2]
[387530941,1758759039659,-500.0,0.00020896,2]
[387530942,1758759039670,-500.0,0.00020896,2]
[387530943,1758759039679,-1073.0,0.00020896,2]
[387530944,1758759039689,-500.0,0.00020896,2]
[387530945,1758759039699,-2811.927,0.00020897,2]
[387530946,1758759039708,-265.994,0.00020897,2]
[387530947,1758759039718,-151.0,0.00020897,2]
[387530948,1758759039727,-1000.0,0.00020898,2]
[387530949,1758759039736,-1101.21803052,0.00020899,5]
[387530950,1758759039746,-5000.0,0.00020899,2]
[387530951,1758759039755,-150.0,0.00020899,2]
[387530952,1758759039764,-500.0,0.00020899,2]
[387530953,1758759039773,-150.0,0.00020899,2]
[387530954,1758759039783,-150.0,0.00020899,2]
[387530955,1758759039792,-150.0,0.00020899,2]
[387530956,1758759039802,-767.0,0.00020899,2]
[387530957,1758759039811,-500.0,0.00020899,2]
[387530958,1758759039820,-150.0,0.00020899,2]
[387530959,1758759039830,-500.0,0.00020899,2]
[387530960,1758759039839,-150.0,0.00020899,2]
[387530961,1758759039848,-150.0,0.00020899,2]
[387530962,1758759039858,-150.0,0.00020899,2]
[387530963,1758759039869,-500.0,0.00020899,2]
[387530964,1758759039879,-150.0,0.00020899,2]
[387530965,1758759039890,-191750.80961785,0.000209,2]
[387530966,1758759039901,-1800.0,0.000209,7]
[387530967,1758759039911,-151.0,0.000209,2]
[387530968,1758759039921,-151.929513,0.000209,2]
[387530969,1758759039931,-151.0,0.000209,2]
[387530970,1758759039942,-151.0,0.000209,2]
[387530971,1758759039955,-151.0,0.000209,2]
[387530972,1758759039964,-151.0,0.000209,2]
[387530973,1758759039974,-151.0,0.000209,2]
[387530974,1758759039983,-2389.46,0.00020904,2]
[387530975,1758759039993,-322.6107,0.00020914,2]
[387530976,1758759040003,-200.68187447,0.00020914,2]
[387530977,1758759040013,-500.0,0.00020914,2]
[387530978,1758759040022,-151.0,0.00020914,2]
[387530979,1758759040037,-180.95104746,0.00020914,2]
[387530980,1758759040046,-500.0,0.00020914,2]
[387530981,1758759040058,-500.0,0.00020914,2]
[387530982,1758759040067,-281.61191073,0.00020914,2]
[387530983,1758759040077,-500.0,0.00020914,2]
[387530984,1758759040086,-380.79490891,0.00020914,2]
[387530985,1758759040096,-151.0,0.00020914,2]
[387530986,1758759040106,-9000.0,0.00020914,2]
[387530987,1758759040116,-151.0,0.00020914,2]
[387530988,1758759040125,-3561.904003,0.00020914,2]
[387530989,1758759040135,-500.0,0.00020914,2]
[387530990,1758759040144,-646.65982734,0.00020914,2]
[387530991,1758759040153,-500.0,0.00020914,2]
[387530992,1758759040163,-151.0,0.00020914,2]
[387530993,1758759040173,-500.0,0.00020914,2]
[387530994,1758759040182,-260.20444683,0.00020914,2]
[387530995,1758759040192,-500.0,0.00020914,2]
[387530996,1758759040202,-500.0,0.00020914,2]
[387530997,1758759040211,-206.75676186,0.00020914,2]
[387530998,1758759040221,-248.71531821,0.00020914,2]
[387530999,1758759040230,-151.0,0.00020914,2]
[387531000,1758759040239,-500.0,0.00020914,2]
[387531001,1758759040249,-500.0,0.00020914,2]
[387531002,1758759040258,-500.0,0.00020914,2]
[387531003,1758759040268,-213.80194937,0.00020914,2]
[387531004,1758759040277,-203.35457035,0.00020914,2]
[387531005,1758759040286,-262.04284708,0.00020914,2]
[387531006,1758759040296,-151.0,0.00020914,2]
[387531007,1758759040306,-1293.06635452,0.00020914,2]
[387531008,1758759040316,-805.89,0.00020941,2]
[387531009,1758759040326,-170.74,0.00020949,2]
[387531010,1758759040335,-16854.23771631,0.00020975,2]
[387531011,1758759040345,-9473.90833402,0.00020983,2]
[387531012,1758759040355,-540.71,0.00020986,2]
[387531013,1758759040365,-848.11374697,0.00020998,2]
[387531014,1758759040375,-500.0,0.00021,2]
[387531015,1758759040384,-12524.55,0.00021017,4]
[387531016,1758759040393,-150.0,0.00021078,2]
[387531017,1758759040403,-287.63,0.00021078,2]
[387531018,1758759040412,-150.82,0.00021078,2]
[387531019,1758759040421,-167.49,0.00021078,2]
[387531020,1758759040431,-411.74,0.00021078,2]
[387531021,1758759040441,-543.97,0.00021078,2]
[387531022,1758759040450,-468.6,0.00021096,2]
[387531023,1758759040460,-1428.27,0.00021096,2]
[387531024,1758759040470,-150.0,0.00021096,2]
[387531025,1758759040479,-567.0,0.00021099,2]
[387531026,1758759040489,-16854.23771631,0.00021134,2]
[387531027,1758759040499,-9473.90833402,0.00021142,2]
[387531028,1758759040508,-500.0,0.00021148,2]
[387531029,1758759040519,-228.06778029,0.00021148,2]
[387531030,1758759040529,-152.59863548,0.00021148,2]
[387531032,1758759040538,-6872.43851674,0.00021149,2]
[387531034,1758759040547,-536.0,0.00021164,2]
[387531036,1758759040557,-824.0,0.00021164,2]
[387531038,1758759040566,-500.0,0.00021164,2]
[387531040,1758759040575,-3832.0,0.00021164,2]
[387531042,1758759040584,-500.0,0.00021164,2]
[387531044,1758759040593,-500.0,0.00021164,2]
[387531046,1758759040602,-491.0,0.00021164,2]
[387531048,1758759040611,-998.0,0.00021164,2]
[387531050,1758759040622,-150.0,0.00021164,2]
[387531052,1758759040631,-500.0,0.00021164,2]
[387531054,1758759040641,-150.0,0.00021164,2]
[387531056,1758759040651,-150.0,0.00021164,2]
[387531058,1758759040661,-500.0,0.00021164,2]
[387531060,1758759040671,-500.0,0.0002117,2]
[387531062,1758759040680,-150.0,0.0002117,2]
[387531064,1758759040690,-500.0,0.0002117,2]
[387531066,1758759040699,-150.0,0.0002117,2]
[387531068,1758759040709,-500.0,0.0002117,2]
[387531070,1758759040718,-500.0,0.0002117,2]
[387531072,1758759040727,-500.0,0.0002117,2]
[387531074,1758759040736,-150.0,0.0002117,2]
[387531076,1758759040745,-150.0,0.0002117,2]
[387531078,1758759040755,-221.52420828,0.0002117,2]
[387531079,1758759040764,-500.0,0.0002117,2]
[387531081,1758759040773,-500.0,0.0002117,2]
[387531083,1758759040783,-500.0,0.0002117,2]
[387531086,1758759040792,-150.0,0.0002117,2]
[387531087,1758759040801,-150.0,0.0002117,2]
[387531090,1758759040811,-150.0,0.0002117,2]
[387531091,1758759040820,-150.0,0.0002117,2]
[387531093,1758759040829,-500.0,0.0002117,2]
[387531096,1758759040840,-150.0,0.0002117,2]
[387531097,1758759040849,-1100.0,0.0002117,2]
[387531099,1758759040858,-1100.0,0.0002117,2]
[387531101,1758759040868,-500.0,0.0002117,2]
[387531103,1758759040878,-150.0,0.0002117,2]
[387531105,1758759040887,-500.0,0.0002117,2]
[387531107,1758759040897,-500.0,0.0002117,2]
[387531109,1758759040907,-500.0,0.0002117,2]
[387531111,1758759040917,-500.0,0.0002117,2]
[387531113,1758759040926,-1073.0,0.0002117,2]
[387531115,1758759040936,-500.0,0.0002117,2]
[387531117,1758759040945,-500.0,0.00021173,2]
[387531119,1758759040955,-150.0,0.00021173,2]
[387531121,1758759040964,-500.0,0.00021173,2]
[387531123,1758759040973,-150.0,0.00021173,2]
[387531124,1758759040982,-150.0,0.00021173,2]
[387531125,1758759040992,-150.0,0.00021173,2]
[387531126,1758759041002,-767.0,0.00021173,2]
[387531127,1758759041012,-500.0,0.00021173,2]
[387531128,1758759041021,-150.0,0.00021173,2]
[387531129,1758759041035,-500.0,0.00021173,2]
[387531130,1758759041045,-150.0,0.00021173,2]
[387531131,1758759041055,-150.0,0.00021173,2]
[387531132,1758759041064,-500.0,0.00021173,2]
[387531133,1758759041075,-150.0,0.00021173,2]
[387531134,1758759041085,-820.28,0.00021178,2]
[387531135,1758759041095,-222.0,0.0002118,2]
[387531136,1758759041105,-567.0,0.00021184,2]
[387531137,1758759041115,-503.0,0.00021205,2]
[387531138,1758759041124,-848.11374697,0.00021208,2]
[387531139,1758759041133,-1194.73,0.00021221,2]
[387531140,1758759041143,-544.25,0.00021221,2]
[387531141,1758759041152,-411.74,0.00021221,2]
[387531142,1758759041162,-544.25,0.00021221,2]
[387531143,1758759041171,-150.0,0.00021221,2]
[387531144,1758759041181,-153.66,0.00021223,2]
[387531145,1758759041190,-945.98,0.00021233,2]
[387531146,1758759041199,-1611.78,0.00021233,2]
[387531147,1758759041208,-805.89,0.00021233,2]
[387531148,1758759041219,-385.0,0.00021233,2]
[387531149,1758759041228,-153.66,0.00021239,2]
[387531150,1758759041238,-153.66,0.00021239,2]
[387531151,1758759041247,-398.54,0.00021244,2]
[387531152,1758759041258,-1184.29998887,0.00021246,5]
[387531153,1758759041267,-1184.29998887,0.00021246,5]
[387531154,1758759041277,-1184.29998886,0.00021246,5]
[387531155,1758759041287,-151.0,0.00021246,2]
[387531156,1758759041299,-567.0,0.00021248,2]
[387531157,1758759041309,-1183.16231386,0.00021248,5]
[387531158,1758759041319,-162.194,0.00021248,2]
[387531159,1758759041330,-7552.7357352,0.00021249,2]
[387531160,1758759041340,-515910.6634071,0.00021249,2]
[387531161,1758759041349,-68828.17899,0.00021249,2]
[387531162,1758759041358,-151.0,0.00021249,2]
[387531163,1758759041368,-151.0,0.00021249,2]
[387531164,1758759041377,-152.202334,0.00021249,2]
[387531165,1758759041387,-151.0,0.00021249,2]
[387531166,1758759041396,-151.0,0.00021249,2]
[387531167,1758759041405,-151.0,0.00021249,2]
[387531168,1758759041415,-151.0,0.00021249,2]
[387531169,1758759041426,-151.0,0.00021249,2]
[387531170,1758759041436,-151.0,0.00021249,2]
[387531171,1758759041445,-1415.1540808,0.00021249,2]
[387531172,1758759041455,-151.0,0.00021249,2]
[387531173,1758759041464,-151.0,0.00021249,2]
[387531174,1758759041474,-151.0,0.00021249,2]
[387531175,1758759041483,-151.0,0.00021249,2]
[387531176,1758759041492,-151.0,0.00021249,2]
[387531177,1758759041502,-159.10858,0.00021249,2]
[387531178,1758759041511,-151.0,0.00021249,2]
[387531179,1758759041521,-151.602374,0.00021249,2]
[387531180,1758759041530,-151.0,0.00021249,2]
[387531181,1758759041540,-151.0,0.00021249,2]
[387531182,1758759041548,-151.0,0.00021249,2]
[387531183,1758759041558,-151.0,0.00021249,2]
[387531184,1758759041568,-433.142181,0.00021249,2]
[387531185,1758759041578,-225.272071,0.00021249,2]
[387531186,1758759041587,-433.142181,0.00021249,2]
[387531187,1758759041596,-433.142181,0.00021249,2]
[387531188,1758759041606,-433.142181,0.00021249,2]
[387531189,1758759041616,-151.0,0.00021249,2]
[387531190,1758759041625,-154.672848,0.00021249,2]
[387531191,1758759041635,-151.0,0.00021249,2]
[387531192,1758759041644,-154.672848,0.00021249,2]
[387531193,1758759041653,-151.0,0.00021249,2]
[387531194,1758759041663,-154.672848,0.00021249,2]
[387531195,1758759041672,-246.369561,0.00021249,2]
[387531196,1758759041682,-154.672848,0.00021249,2]
[387531197,1758759041691,-151.0,0.00021249,2]
[387531198,1758759041700,-152.834666,0.00021249,2]
[387531199,1758759041710,-152.834666,0.00021249,2]
[387531200,1758759041719,-152.834666,0.00021249,2]
[387531201,1758759041731,-152.834666,0.00021249,2]
[387531202,1758759041740,-151.0,0.00021249,2]
[387531203,1758759041749,-363.379998,0.00021249,2]
[387531204,1758759041759,-151.0,0.00021249,2]
[387531205,1758759041768,-363.379998,0.00021249,2]
[387531206,1758759041778,-363.379998,0.00021249,2]
[387531207,1758759041787,-363.379998,0.00021249,2]
[387531208,1758759041796,-151.0,0.00021249,2]
[387531209,1758759041806,-152.875936,0.00021249,2]
[387531210,1758759041815,-151.0,0.00021249,2]
[387531211,1758759041824,-151.0,0.00021249,2]
[387531212,1758759041834,-151.0,0.00021249,2]
[387531213,1758759041844,-151.0,0.00021249,2]
[387531214,1758759041854,-151.0,0.00021249,2]
[387531215,1758759041863,-151.0,0.00021249,2]
[387531216,1758759041872,-151.0,0.00021249,2]
[387531217,1758759041882,-184.290661,0.00021249,2]
[387531218,1758759041891,-184.290661,0.00021249,2]
[387531219,1758759041900,-151.0,0.00021249,2]
[387531220,1758759041909,-184.290661,0.00021249,2]
[387531221,1758759041920,-151.0,0.00021249,2]
[387531222,1758759041929,-184.290661,0.00021249,2]
[387531223,1758759041938,-151.0,0.00021249,2]
[387531224,1758759041948,-290.287709,0.00021249,2]
[387531225,1758759041958,-151.0,0.00021249,2]
[387531226,1758759041967,-152.372984,0.00021249,2]
[387531227,1758759041977,-218.298186,0.00021249,2]
[387531228,1758759041986,-218.298186,0.00021249,2]
[387531229,1758759041996,-218.298186,0.00021249,2]
[387531230,1758759042005,-218.298186,0.00021249,2]
[387531231,1758759042014,-151.0,0.00021249,2]
[387531232,1758759042024,-151.0,0.00021249,2]
[387531233,1758759042037,-151.0,0.00021249,2]
[387531234,1758759042047,-151.0,0.00021249,2]
[387531235,1758759042056,-151.0,0.00021249,2]
[387531236,1758759042066,-151.0,0.00021249,2]
[387531237,1758759042077,-151.0,0.00021249,2]
[387531238,1758759042087,-166.041722,0.00021249,2]
[387531239,1758759042096,-151.0,0.00021249,2]
[387531240,1758759042107,-157.907516,0.00021249,2]
[387531241,1758759042117,-151.0,0.00021249,2]
[387531242,1758759042126,-311.953263,0.00021249,2]
[387531243,1758759042135,-311.953263,0.00021249,2]
[387531244,1758759042144,-151.0,0.00021249,2]
[387531245,1758759042153,-311.953263,0.00021249,2]
[387531246,1758759042164,-311.953263,0.00021249,2]
[387531247,1758759042173,-151.0,0.00021249,2]
[387531248,1758759042183,-151.0,0.00021249,2]
[387531249,1758759042192,-151.0,0.00021249,2]
[387531250,1758759042201,-151.0,0.00021249,2]
[387531251,1758759042210,-151.0,0.00021249,2]
[387531252,1758759042219,-235.578181,0.00021249,2]
[387531253,1758759042228,-151.0,0.00021249,2]
[387531254,1758759042237,-151.0,0.00021249,2]
[387531255,1758759042246,-235.578181,0.00021249,2]
[387531256,1758759042256,-151.0,0.00021249,2]
[387531257,1758759042265,-151.0,0.00021249,2]
[387531258,1758759042275,-151.0,0.00021249,2]
[387531259,1758759042284,-235.578181,0.00021249,2]
[387531260,1758759042293,-151.0,0.00021249,2]
[387531261,1758759042302,-227.648672,0.00021249,2]
[387531262,1758759042311,-151.0,0.00021249,2]
[387531263,1758759042320,-235.578181,0.00021249,2]
[387531264,1758759042329,-151.0,0.00021249,2]
[387531265,1758759042338,-151.0,0.00021249,2]
[387531266,1758759042347,-151.0,0.00021249,2]
[387531267,1758759042356,-151.0,0.00021249,2]
[387531268,1758759042365,-151.0,0.00021249,2]
[387531269,1758759042375,-151.0,0.00021249,2]
[387531270,1758759042384,-151.0,0.00021249,2]
[387531271,1758759042393,-151.0,0.00021249,2]
[387531272,1758759042403,-151.0,0.00021249,2]
[387531273,1758759042412,-151.0,0.00021249,2]
[387531274,1758759042423,-151.0,0.00021249,2]
[387531275,1758759042431,-151.0,0.00021249,2]
[387531276,1758759042441,-151.0,0.00021249,2]
[387531277,1758759042450,-151.0,0.00021249,2]
[387531278,1758759042459,-151.0,0.00021249,2]
[387531279,1758759042469,-151.0,0.00021249,2]
[387531280,1758759042478,-436.39953,0.00021249,2]
[387531281,1758759042487,-436.39953,0.00021249,2]
[387531282,1758759042496,-151.0,0.00021249,2]
[387531283,1758759042506,-436.39953,0.00021249,2]
[387531284,1758759042515,-151.0,0.00021249,2]
[387531285,1758759042524,-436.39953,0.00021249,2]
[387531286,1758759042534,-151.0,0.00021249,2]
[387531287,1758759042543,-151.0,0.00021249,2]
[387531288,1758759042552,-165.103787,0.00021249,2]
[387531289,1758759042561,-151.0,0.00021249,2]
[387531290,1758759042570,-195.316298,0.00021249,2]
[387531291,1758759042580,-151.0,0.00021249,2]
[387531292,1758759042589,-151.0,0.00021249,2]
[387531293,1758759042599,-151.0,0.00021249,2]
[387531294,1758759042608,-220.09453,0.00021249,2]
[387531295,1758759042617,-151.0,0.00021249,2]
[387531296,1758759042626,-151.0,0.00021249,2]
[387531297,1758759042635,-151.0,0.00021249,2]
[387531298,1758759042644,-151.0,0.00021249,2]
[387531299,1758759042654,-206.001352,0.00021249,2]
[387531300,1758759042663,-151.0,0.00021249,2]
[387531301,1758759042672,-151.0,0.00021249,2]
[387531302,1758759042682,-151.0,0.00021249,2]
[387531303,1758759042691,-206.001352,0.00021249,2]
[387531304,1758759042701,-151.0,0.00021249,2]
[387531305,1758759042710,-151.0,0.00021249,2]
[387531306,1758759042720,-206.001352,0.00021249,2]
[387531307,1758759042729,-151.0,0.00021249,2]
[387531308,1758759042739,-206.001352,0.00021249,2]
[387531309,1758759042748,-151.0,0.00021249,2]
[387531310,1758759042758,-151.0,0.00021249,2]
[387531311,1758759042767,-151.0,0.00021249,2]
[387531312,1758759042776,-151.0,0.00021249,2]
[387531313,1758759042786,-151.0,0.00021249,2]
[387531314,1758759042796,-151.0,0.00021249,2]